[Event "Titled Tuesday Blitz October 11 Late 2022"]
[White "Jaracz, Pawel"]
[Black "Vivas Zamora, Fabian Ernesto"]
[WhiteFideId "1102222"]
[BlackFideId "3902480"]
[WhiteElo "2698"]
[BlackElo "2485"]
[Result "1-0"]
[Round "04"]
[TimeControl "180+1"]
[Date "2022.10.12"]
[WhiteClock "0:00:03"]
[BlackClock "0:00:03"]

1. d4 {[%clk 0:03:00]}  Nf6 {[%clk 0:02:54]} 2. c4 {[%clk 0:03:00]}  g6 {[%clk 0:02:54]} 3. Nc3 {[%clk 0:03:00]}  d5 {[%clk 0:02:54]} 4. cxd5 {[%clk 0:02:59]}  Nxd5 {[%clk 0:02:55]} 5. e4 {[%clk 0:02:59]}  Nxc3 {[%clk 0:02:56]} 6. bxc3 {[%clk 0:03:00]}  Bg7 {[%clk 0:02:57]} 7. Bc4 {[%clk 0:02:57]}  c5 {[%clk 0:02:57]} 8. Ne2 {[%clk 0:02:57]}  Nc6 {[%clk 0:02:52]} 9. Be3 {[%clk 0:02:57]}  O-O {[%clk 0:02:51]} 10. O-O {[%clk 0:02:57]}  b6 {[%clk 0:02:49]} 11. Rc1 {[%clk 0:02:55]}  Bb7 {[%clk 0:02:37]} 12. Qd2 {[%clk 0:02:54]}  Na5 {[%clk 0:02:27]} 13. Bd3 {[%clk 0:02:54]}  cxd4 {[%clk 0:02:14]} 14. cxd4 {[%clk 0:02:53]}  e6 {[%clk 0:02:14]} 15. Bh6 {[%clk 0:02:42]}  Qd7 {[%clk 0:01:46]} 16. Bxg7 {[%clk 0:02:40]}  Kxg7 {[%clk 0:01:47]} 17. Qf4 {[%clk 0:02:39]}  Rac8 {[%clk 0:01:44]} 18. h4 {[%clk 0:02:38]}  Nc6 {[%clk 0:01:16]} 19. Bb5 {[%clk 0:02:28]}  a6 {[%clk 0:01:12]} 20. Bxc6 {[%clk 0:02:22]}  Rxc6 {[%clk 0:01:11]} 21. h5 {[%clk 0:02:20]}  f6 {[%clk 0:01:05]} 22. Rxc6 {[%clk 0:02:10]}  Qxc6 {[%clk 0:01:03]} 23. h6+ {[%clk 0:01:56]}  Kg8 {[%clk 0:01:02]} 24. f3 {[%clk 0:01:42]}  e5 {[%clk 0:00:57]} 25. Qe3 {[%clk 0:01:32]}  exd4 {[%clk 0:00:48]} 26. Nxd4 {[%clk 0:01:31]}  Qd6 {[%clk 0:00:36]} 27. Rc1 {[%clk 0:01:23]}  Rc8 {[%clk 0:00:35]} 28. Rxc8+ {[%clk 0:01:21]}  Bxc8 {[%clk 0:00:36]} 29. Qb3+ {[%clk 0:01:21]}  Kf8 {[%clk 0:00:36]} 30. Qc3 {[%clk 0:01:11]}  Qc5 {[%clk 0:00:33]} 31. Qe3 {[%clk 0:00:46]}  Ke7 {[%clk 0:00:30]} 32. Kf2 {[%clk 0:00:45]}  Bd7 {[%clk 0:00:25]} 33. g4 {[%clk 0:00:43]}  g5 {[%clk 0:00:13]} 34. a3 {[%clk 0:00:34]}  Qd6 {[%clk 0:00:12]} 35. Qc3 {[%clk 0:00:29]}  Qh2+ {[%clk 0:00:08]} 36. Ke3 {[%clk 0:00:28]}  Qf4+ {[%clk 0:00:06]} 37. Kd3 {[%clk 0:00:21]}  Bb5+ {[%clk 0:00:04]} 38. Kc2 {[%clk 0:00:22]}  Ba4+ {[%clk 0:00:03]} 39. Kd3 {[%clk 0:00:17]}  Bb5+ {[%clk 0:00:02]} 40. Kc2 {[%clk 0:00:17]}  Ba4+ {[%clk 0:00:03]} 41. Kb2 {[%clk 0:00:18]}  Bd7 {[%clk 0:00:04]} 42. Qb4+ {[%clk 0:00:15]}  Qd6 {[%clk 0:00:04]} 43. Qc4 {[%clk 0:00:11]}  Qc5 {[%clk 0:00:04]} 44. Qxc5+ {[%clk 0:00:11]}  bxc5 {[%clk 0:00:04]} 45. Nb3 {[%clk 0:00:09]}  Kd6 {[%clk 0:00:05]} 46. Kc3 {[%clk 0:00:09]}  Bb5 {[%clk 0:00:06]} 47. Kd2 {[%clk 0:00:07]}  c4 {[%clk 0:00:04]} 48. Nd4 {[%clk 0:00:07]}  Kc5 {[%clk 0:00:02]} 49. Kc3 {[%clk 0:00:06]}  Bd7 {[%clk 0:00:02]} 50. Nc2 {[%clk 0:00:06]}  Be6 {[%clk 0:00:02]} 51. Ne3 {[%clk 0:00:06]}  Bf7 {[%clk 0:00:03]} 52. Nf5 {[%clk 0:00:05]}  Be6 {[%clk 0:00:03]} 53. Ng3 {[%clk 0:00:03]}  Bf7 {[%clk 0:00:02]} 54. Nf1 {[%clk 0:00:03]}  Kb5 {[%clk 0:00:02]} 55. Ne3 {[%clk 0:00:03]}  Ka4 {[%clk 0:00:02]} 56. Nxc4 {[%clk 0:00:02]}  Bxc4 {[%clk 0:00:02]} 57. Kxc4 {[%clk 0:00:03]}  Kxa3 {[%clk 0:00:03]} 58. Kd3 {[%clk 0:00:03]}  a5 {[%clk 0:00:03]} 59. f4 {[%clk 0:00:04]}  gxf4 {[%clk 0:00:03]} 60. g5 {[%clk 0:00:02]}  fxg5 {[%clk 0:00:03]} 61. e5 {[%clk 0:00:03]} 1-0


[Site "https://www.chess.com"]

[Event "Titled Tuesday Blitz October 11 Late 2022"]
[White "Jean Louis, Marckens"]
[Black "Principe, Gerson"]
[WhiteFideId "11900270"]
[BlackFideId "3804550"]
[WhiteElo "2030"]
[BlackElo "2280"]
[Result "1/2-1/2"]
[Round "04"]
[TimeControl "180+1"]
[Date "2022.10.12"]
[WhiteClock "0:01:20"]
[BlackClock "0:00:24"]

1. d4 {[%clk 0:03:00]}  Nf6 {[%clk 0:02:59]} 2. c4 {[%clk 0:02:59]}  e6 {[%clk 0:03:00]} 3. Nc3 {[%clk 0:02:59]}  Bb4 {[%clk 0:02:59]} 4. Qc2 {[%clk 0:03:00]}  d5 {[%clk 0:02:57]} 5. cxd5 {[%clk 0:02:51]}  exd5 {[%clk 0:02:56]} 6. Bg5 {[%clk 0:02:51]}  Nbd7 {[%clk 0:02:55]} 7. e3 {[%clk 0:02:52]}  c5 {[%clk 0:02:55]} 8. Nf3 {[%clk 0:02:51]}  Qa5 {[%clk 0:02:55]} 9. Bd3 {[%clk 0:02:46]}  c4 {[%clk 0:02:25]} 10. Bf5 {[%clk 0:02:44]}  Bxc3+ {[%clk 0:02:03]} 11. bxc3 {[%clk 0:02:43]}  O-O {[%clk 0:02:01]} 12. O-O {[%clk 0:02:43]}  Re8 {[%clk 0:02:00]} 13. Rfb1 {[%clk 0:02:16]}  Ne4 {[%clk 0:01:51]} 14. Bxe4 {[%clk 0:02:12]}  dxe4 {[%clk 0:01:38]} 15. Ne5 {[%clk 0:02:11]}  Nxe5 {[%clk 0:01:36]} 16. dxe5 {[%clk 0:02:08]}  Qxe5 {[%clk 0:01:34]} 17. Bf4 {[%clk 0:02:07]}  Qa5 {[%clk 0:01:27]} 18. a4 {[%clk 0:02:04]}  a6 {[%clk 0:01:10]} 19. h3 {[%clk 0:02:02]}  Qf5 {[%clk 0:01:00]} 20. a5 {[%clk 0:01:57]}  Rd8 {[%clk 0:00:59]} 21. Qa4 {[%clk 0:01:53]}  Bd7 {[%clk 0:00:49]} 22. Qxc4 {[%clk 0:01:51]}  Bb5 {[%clk 0:00:49]} 23. Qc7 {[%clk 0:01:50]}  Rd7 {[%clk 0:00:46]} 24. Qb6 {[%clk 0:01:46]}  Rc8 {[%clk 0:00:44]} 25. Rd1 {[%clk 0:01:41]}  h6 {[%clk 0:00:39]} 26. Rxd7 {[%clk 0:01:36]}  Qxd7 {[%clk 0:00:39]} 27. Be5 {[%clk 0:01:33]}  Rc6 {[%clk 0:00:36]} 28. Qa7 {[%clk 0:01:33]}  Rg6 {[%clk 0:00:33]} 29. Qb8+ {[%clk 0:01:28]}  Kh7 {[%clk 0:00:33]} 30. Bg3 {[%clk 0:01:26]}  Bc6 {[%clk 0:00:26]} 31. Qe5 {[%clk 0:01:20]}  Qe6 {[%clk 0:00:24]} 1/2-1/2


[Site "https://www.chess.com"]

[Event "Titled Tuesday Blitz October 11 Late 2022"]
[White "Jensen, Matthew R"]
[Black "Diaz Rosas, Julio Cesar"]
[WhiteFideId "2018110"]
[BlackFideId "5105099"]
[WhiteElo "2313"]
[BlackElo "2246"]
[Result "0-1"]
[Round "04"]
[TimeControl "180+1"]
[Date "2022.10.12"]
[WhiteClock "0:00:21"]
[BlackClock "0:00:50"]

1. d4 {[%clk 0:03:00]}  Nf6 {[%clk 0:02:59]} 2. c4 {[%clk 0:03:00]}  g6 {[%clk 0:02:59]} 3. Nc3 {[%clk 0:03:00]}  d5 {[%clk 0:03:00]} 4. Bd2 {[%clk 0:02:59]}  c5 {[%clk 0:02:59]} 5. cxd5 {[%clk 0:02:54]}  Nxd5 {[%clk 0:02:54]} 6. dxc5 {[%clk 0:02:53]}  Bg7 {[%clk 0:02:53]} 7. Nf3 {[%clk 0:02:41]}  O-O {[%clk 0:02:52]} 8. e4 {[%clk 0:02:39]}  Nxc3 {[%clk 0:02:52]} 9. Bxc3 {[%clk 0:02:40]}  Bxc3+ {[%clk 0:02:51]} 10. bxc3 {[%clk 0:02:41]}  Qa5 {[%clk 0:02:51]} 11. Qb3 {[%clk 0:02:35]}  Nc6 {[%clk 0:02:43]} 12. Be2 {[%clk 0:02:27]}  Be6 {[%clk 0:02:38]} 13. Qc2 {[%clk 0:02:24]}  Qxc5 {[%clk 0:02:36]} 14. O-O {[%clk 0:02:22]}  Rac8 {[%clk 0:02:36]} 15. Rac1 {[%clk 0:02:22]}  Bg4 {[%clk 0:02:32]} 16. Rfd1 {[%clk 0:02:05]}  Bxf3 {[%clk 0:02:28]} 17. Bxf3 {[%clk 0:02:05]}  e6 {[%clk 0:02:27]} 18. Qb3 {[%clk 0:01:39]}  b6 {[%clk 0:02:23]} 19. Be2 {[%clk 0:01:22]}  Rfd8 {[%clk 0:02:19]} 20. h4 {[%clk 0:01:06]}  h5 {[%clk 0:02:12]} 21. g4 {[%clk 0:00:52]}  hxg4 {[%clk 0:02:10]} 22. Bxg4 {[%clk 0:00:50]}  Kg7 {[%clk 0:02:06]} 23. Kg2 {[%clk 0:00:47]}  Qe5 {[%clk 0:02:00]} 24. f3 {[%clk 0:00:42]}  Qf4 {[%clk 0:01:55]} 25. Qc2 {[%clk 0:00:34]}  Ne5 {[%clk 0:01:54]} 26. Qe2 {[%clk 0:00:29]}  Rxd1 {[%clk 0:01:36]} 27. Rxd1 {[%clk 0:00:30]}  Rxc3 {[%clk 0:01:34]} 28. Qb2 {[%clk 0:00:30]}  Qe3 {[%clk 0:01:07]} 29. h5 {[%clk 0:00:26]}  Nxg4 {[%clk 0:00:57]} 30. fxg4 {[%clk 0:00:25]}  Qxe4+ {[%clk 0:00:55]} 31. Kf2 {[%clk 0:00:21]}  Qf3+ {[%clk 0:00:52]} 32. Ke1 {[%clk 0:00:20]}  Qg3+ {[%clk 0:00:50]} 33. Kd2 {[%clk 0:00:21]}  Qe3# {[%clk 0:00:50]} 0-1


[Site "https://www.chess.com"]

[Event "Titled Tuesday Blitz October 11 Late 2022"]
[White "Jobava, Baadur"]
[Black "Suleymanli, Aydin"]
[WhiteFideId "13601520"]
[BlackFideId "13413937"]
[WhiteElo "2582"]
[BlackElo "2481"]
[Result "1-0"]
[Round "04"]
[TimeControl "180+1"]
[Date "2022.10.11"]
[WhiteClock "0:00:43"]
[BlackClock "0:00:03"]

1. e4 {[%clk 0:03:00]}  Nf6 {[%clk 0:03:00]} 2. e5 {[%clk 0:03:00]}  Nd5 {[%clk 0:03:00]} 3. Nc3 {[%clk 0:03:01]}  e6 {[%clk 0:02:56]} 4. Nf3 {[%clk 0:02:58]}  d6 {[%clk 0:02:55]} 5. Nxd5 {[%clk 0:02:57]}  exd5 {[%clk 0:02:55]} 6. d4 {[%clk 0:02:57]}  Bg4 {[%clk 0:02:40]} 7. Be2 {[%clk 0:02:56]}  Nc6 {[%clk 0:02:29]} 8. O-O {[%clk 0:02:56]}  Be7 {[%clk 0:02:27]} 9. h3 {[%clk 0:02:54]}  Be6 {[%clk 0:02:16]} 10. Bf4 {[%clk 0:02:50]}  O-O {[%clk 0:02:15]} 11. Re1 {[%clk 0:02:49]}  f6 {[%clk 0:01:57]} 12. exf6 {[%clk 0:02:45]}  Bxf6 {[%clk 0:01:58]} 13. Qd2 {[%clk 0:02:42]}  Bf5 {[%clk 0:01:54]} 14. c3 {[%clk 0:02:39]}  Kh8 {[%clk 0:01:51]} 15. Bd3 {[%clk 0:02:22]}  Qd7 {[%clk 0:01:24]} 16. Bg5 {[%clk 0:02:20]}  Bxg5 {[%clk 0:01:16]} 17. Nxg5 {[%clk 0:02:21]}  h6 {[%clk 0:01:11]} 18. Bxf5 {[%clk 0:02:12]}  Rxf5 {[%clk 0:01:02]} 19. Ne6 {[%clk 0:02:09]}  Qf7 {[%clk 0:00:31]} 20. Re3 {[%clk 0:01:57]}  Rg8 {[%clk 0:00:01]} 21. Rae1 {[%clk 0:01:56]}  g5 {[%clk 0:00:02]} 22. Qe2 {[%clk 0:01:41]}  Rg6 {[%clk 0:00:01]} 23. f3 {[%clk 0:01:15]}  Rff6 {[%clk 0:00:02]} 24. b4 {[%clk 0:01:07]}  a6 {[%clk 0:00:02]} 25. a4 {[%clk 0:01:07]}  h5 {[%clk 0:00:01]} 26. b5 {[%clk 0:01:07]}  axb5 {[%clk 0:00:02]} 27. axb5 {[%clk 0:01:08]}  Na5 {[%clk 0:00:02]} 28. Nd8 {[%clk 0:01:08]}  Qg8 {[%clk 0:00:03]} 29. Re7 {[%clk 0:01:01]}  Rg7 {[%clk 0:00:02]} 30. Rxg7 {[%clk 0:00:59]}  Kxg7 {[%clk 0:00:01]} 31. Ne6+ {[%clk 0:00:52]}  Kg6 {[%clk 0:00:02]} 32. Nxc7 {[%clk 0:00:52]}  Nc4 {[%clk 0:00:01]} 33. Qd3+ {[%clk 0:00:50]}  Kh6 {[%clk 0:00:02]} 34. Re7 {[%clk 0:00:47]}  g4 {[%clk 0:00:02]} 35. fxg4 {[%clk 0:00:45]}  hxg4 {[%clk 0:00:03]} 36. Nxd5 {[%clk 0:00:45]}  Qxd5 {[%clk 0:00:02]} 37. Rh7+ {[%clk 0:00:42]}  Kg5 {[%clk 0:00:03]} 38. h4+ {[%clk 0:00:43]}  Kf4 {[%clk 0:00:03]} 39. g3# {[%clk 0:00:43]} 1-0


[Site "https://www.chess.com"]

[Event "Titled Tuesday Blitz October 11 Late 2022"]
[White "Keymer, Vincent"]
[Black "Eisa Mohmood, Alkhoori"]
[WhiteFideId "12940690"]
[BlackFideId "9316116"]
[WhiteElo "2950"]
[BlackElo "2260"]
[Result "1-0"]
[Round "04"]
[TimeControl "180+1"]
[Date "2022.10.12"]
[WhiteClock "0:00:02"]
[BlackClock "0:00:01"]

1. a3 {[%clk 0:03:00]}  a5 {[%clk 0:02:55]} 2. e4 {[%clk 0:02:59]}  e5 {[%clk 0:02:45]} 3. Nf3 {[%clk 0:02:58]}  Nc6 {[%clk 0:02:41]} 4. Bc4 {[%clk 0:02:58]}  Bc5 {[%clk 0:02:34]} 5. c3 {[%clk 0:02:55]}  d6 {[%clk 0:02:32]} 6. d4 {[%clk 0:02:55]}  Bb6 {[%clk 0:02:29]} 7. dxe5 {[%clk 0:02:51]}  dxe5 {[%clk 0:02:21]} 8. Qxd8+ {[%clk 0:02:50]}  Nxd8 {[%clk 0:02:16]} 9. Nxe5 {[%clk 0:02:45]}  Nf6 {[%clk 0:02:14]} 10. Nd2 {[%clk 0:02:41]}  O-O {[%clk 0:02:09]} 11. f3 {[%clk 0:02:21]}  Re8 {[%clk 0:02:07]} 12. Nd3 {[%clk 0:02:21]}  Be6 {[%clk 0:02:01]} 13. Bxe6 {[%clk 0:02:17]}  Nxe6 {[%clk 0:02:01]} 14. Nc4 {[%clk 0:02:18]}  Nd7 {[%clk 0:01:54]} 15. Be3 {[%clk 0:02:15]}  f5 {[%clk 0:01:47]} 16. Bxb6 {[%clk 0:01:48]}  Nxb6 {[%clk 0:01:44]} 17. Nxb6 {[%clk 0:01:42]}  cxb6 {[%clk 0:01:45]} 18. e5 {[%clk 0:01:43]}  Nc5 {[%clk 0:01:40]} 19. O-O-O {[%clk 0:01:22]}  Nxd3+ {[%clk 0:01:33]} 20. Rxd3 {[%clk 0:01:23]}  Rxe5 {[%clk 0:01:34]} 21. Rd7 {[%clk 0:01:22]}  Re2 {[%clk 0:01:27]} 22. Rxb7 {[%clk 0:01:06]}  Rxg2 {[%clk 0:01:25]} 23. Rxb6 {[%clk 0:01:06]}  Rf2 {[%clk 0:01:13]} 24. Rb7 {[%clk 0:00:47]}  Rxf3 {[%clk 0:01:07]} 25. Rg1 {[%clk 0:00:41]}  g6 {[%clk 0:01:05]} 26. Rd1 {[%clk 0:00:35]}  Re8 {[%clk 0:00:53]} 27. Rd2 {[%clk 0:00:31]}  Rf1+ {[%clk 0:00:47]} 28. Kc2 {[%clk 0:00:30]}  f4 {[%clk 0:00:35]} 29. Kb3 {[%clk 0:00:20]}  f3 {[%clk 0:00:15]} 30. Rdd7 {[%clk 0:00:19]}  h5 {[%clk 0:00:13]} 31. Rg7+ {[%clk 0:00:19]}  Kh8 {[%clk 0:00:11]} 32. Rh7+ {[%clk 0:00:15]}  Kg8 {[%clk 0:00:11]} 33. Rbg7+ {[%clk 0:00:15]}  Kf8 {[%clk 0:00:11]} 34. Rf7+ {[%clk 0:00:16]}  Kg8 {[%clk 0:00:10]} 35. Rhg7+ {[%clk 0:00:17]}  Kh8 {[%clk 0:00:11]} 36. Rxg6 {[%clk 0:00:18]}  Rb8+ {[%clk 0:00:04]} 37. Ka4 {[%clk 0:00:18]}  f2 {[%clk 0:00:03]} 38. b3 {[%clk 0:00:07]}  Rc1 {[%clk 0:00:01]} 39. Rxf2 {[%clk 0:00:04]}  Rxc3 {[%clk 0:00:02]} 40. b4 {[%clk 0:00:03]}  axb4 {[%clk 0:00:01]} 41. axb4 {[%clk 0:00:04]}  Rc4 {[%clk 0:00:02]} 42. Rb2 {[%clk 0:00:04]}  Rh4 {[%clk 0:00:02]} 43. Rc6 {[%clk 0:00:04]}  Kh7 {[%clk 0:00:02]} 44. Ka5 {[%clk 0:00:04]}  Rg4 {[%clk 0:00:01]} 45. b5 {[%clk 0:00:04]}  Rg1 {[%clk 0:00:01]} 46. Rc4 {[%clk 0:00:02]}  Ra1+ {[%clk 0:00:01]} 47. Kb4 {[%clk 0:00:02]} 1-0


[Site "https://www.chess.com"]

[Event "Titled Tuesday Blitz October 11 Late 2022"]
[White "Kollars, Dmitrij"]
[Black "Bortnyk, Olexandr"]
[WhiteFideId "12909572"]
[BlackFideId "14120828"]
[WhiteElo "2584"]
[BlackElo "2723"]
[Result "1-0"]
[Round "04"]
[TimeControl "180+1"]
[Date "2022.10.11"]
[WhiteClock "0:00:38"]
[BlackClock "0:00:51"]

1. Nf3 {[%clk 0:03:00]}  d6 {[%clk 0:02:59]} 2. e4 {[%clk 0:02:59]}  Nf6 {[%clk 0:02:59]} 3. Nc3 {[%clk 0:02:58]}  e5 {[%clk 0:02:59]} 4. d4 {[%clk 0:02:58]}  Nbd7 {[%clk 0:02:58]} 5. Bc4 {[%clk 0:02:57]}  Be7 {[%clk 0:02:58]} 6. O-O {[%clk 0:02:57]}  c6 {[%clk 0:02:59]} 7. a4 {[%clk 0:02:57]}  h6 {[%clk 0:02:58]} 8. Re1 {[%clk 0:02:55]}  Qc7 {[%clk 0:02:58]} 9. a5 {[%clk 0:02:50]}  Nf8 {[%clk 0:02:58]} 10. d5 {[%clk 0:02:47]}  Ng6 {[%clk 0:02:55]} 11. h3 {[%clk 0:02:40]}  O-O {[%clk 0:02:54]} 12. Be3 {[%clk 0:02:37]}  Bd7 {[%clk 0:02:46]} 13. Nd2 {[%clk 0:02:36]}  Kh7 {[%clk 0:02:40]} 14. a6 {[%clk 0:02:25]}  b5 {[%clk 0:02:40]} 15. dxc6 {[%clk 0:02:25]}  bxc4 {[%clk 0:02:36]} 16. cxd7 {[%clk 0:02:25]}  Nxd7 {[%clk 0:02:31]} 17. Qe2 {[%clk 0:02:23]}  Rfc8 {[%clk 0:02:30]} 18. Ra4 {[%clk 0:02:19]}  Nb6 {[%clk 0:02:26]} 19. Bxb6 {[%clk 0:02:19]}  Qxb6 {[%clk 0:02:26]} 20. Nxc4 {[%clk 0:02:18]}  Qc6 {[%clk 0:02:25]} 21. g3 {[%clk 0:02:07]}  Rab8 {[%clk 0:02:25]} 22. b3 {[%clk 0:02:07]}  Nf8 {[%clk 0:02:23]} 23. Nd5 {[%clk 0:02:06]}  Bd8 {[%clk 0:02:22]} 24. Qf3 {[%clk 0:02:03]}  Kg8 {[%clk 0:02:18]} 25. Qe3 {[%clk 0:02:00]}  Ne6 {[%clk 0:02:13]} 26. Qxa7 {[%clk 0:01:35]}  Nc5 {[%clk 0:02:12]} 27. Raa1 {[%clk 0:01:16]}  Ra8 {[%clk 0:02:10]} 28. Qe7 {[%clk 0:01:06]}  Rxa6 {[%clk 0:01:31]} 29. Rxa6 {[%clk 0:01:00]}  Nxa6 {[%clk 0:01:30]} 30. Nxd6 {[%clk 0:00:54]}  Kh7 {[%clk 0:01:12]} 31. Qxe5 {[%clk 0:00:47]}  Rb8 {[%clk 0:01:03]} 32. Qf5+ {[%clk 0:00:42]}  Kh8 {[%clk 0:00:56]} 33. Nxf7+ {[%clk 0:00:41]}  Kg8 {[%clk 0:00:57]} 34. Nxd8 {[%clk 0:00:42]}  Qxc2 {[%clk 0:00:51]} 35. Ne7+ {[%clk 0:00:38]} 1-0


[Site "https://www.chess.com"]

[Event "Titled Tuesday Blitz October 11 Late 2022"]
[White "Korchmar, Vasiliy"]
[Black "Zierk, Steven"]
[WhiteFideId "24131750"]
[BlackFideId "2034255"]
[WhiteElo "2370"]
[BlackElo "2494"]
[Result "0-1"]
[Round "04"]
[TimeControl "180+1"]
[Date "2022.10.11"]
[WhiteClock "0:00:32"]
[BlackClock "0:01:22"]

1. e4 {[%clk 0:03:00]}  c6 {[%clk 0:02:59]} 2. d4 {[%clk 0:03:00]}  d5 {[%clk 0:03:00]} 3. e5 {[%clk 0:03:01]}  Bf5 {[%clk 0:03:00]} 4. c4 {[%clk 0:03:00]}  e6 {[%clk 0:03:00]} 5. Nc3 {[%clk 0:03:01]}  Bb4 {[%clk 0:03:00]} 6. Ne2 {[%clk 0:02:53]}  dxc4 {[%clk 0:02:55]} 7. Ng3 {[%clk 0:02:53]}  Bg6 {[%clk 0:02:49]} 8. Bxc4 {[%clk 0:02:52]}  Ne7 {[%clk 0:02:49]} 9. O-O {[%clk 0:02:51]}  Nd7 {[%clk 0:02:49]} 10. Nce4 {[%clk 0:02:42]}  Nb6 {[%clk 0:02:41]} 11. Bb3 {[%clk 0:02:40]}  Ned5 {[%clk 0:02:39]} 12. Bg5 {[%clk 0:02:37]}  Qc7 {[%clk 0:02:31]} 13. a3 {[%clk 0:02:36]}  Bf8 {[%clk 0:02:29]} 14. f4 {[%clk 0:02:37]}  h6 {[%clk 0:02:22]} 15. Bh4 {[%clk 0:02:37]}  Ne3 {[%clk 0:02:22]} 16. Qf3 {[%clk 0:02:33]}  Nxf1 {[%clk 0:02:22]} 17. Rxf1 {[%clk 0:02:34]}  Qd7 {[%clk 0:02:05]} 18. f5 {[%clk 0:02:05]}  exf5 {[%clk 0:02:02]} 19. Nxf5 {[%clk 0:01:50]}  Bxf5 {[%clk 0:01:56]} 20. Qxf5 {[%clk 0:01:51]}  Qxf5 {[%clk 0:01:56]} 21. Rxf5 {[%clk 0:01:52]}  Nd5 {[%clk 0:01:56]} 22. Nc3 {[%clk 0:01:46]}  g5 {[%clk 0:01:40]} 23. Bxd5 {[%clk 0:01:15]}  cxd5 {[%clk 0:01:38]} 24. Nxd5 {[%clk 0:01:13]}  O-O-O {[%clk 0:01:38]} 25. Nc3 {[%clk 0:00:49]}  gxh4 {[%clk 0:01:37]} 26. d5 {[%clk 0:00:49]}  Bc5+ {[%clk 0:01:36]} 27. Kf1 {[%clk 0:00:49]}  Bd4 {[%clk 0:01:33]} 28. d6 {[%clk 0:00:36]}  Bxc3 {[%clk 0:01:26]} 29. bxc3 {[%clk 0:00:37]}  Rhe8 {[%clk 0:01:25]} 30. Kf2 {[%clk 0:00:35]}  f6 {[%clk 0:01:22]} 31. exf6 {[%clk 0:00:32]}  Rxd6 {[%clk 0:01:22]} 0-1


[Site "https://www.chess.com"]

[Event "Titled Tuesday Blitz October 11 Late 2022"]
[White "Kouskoutis, Georgios-Alexandros"]
[Black "Grinev, Valeriy"]
[WhiteFideId "4234049"]
[BlackFideId "14117517"]
[WhiteElo "2549"]
[BlackElo "2730"]
[Result "1/2-1/2"]
[Round "04"]
[TimeControl "180+1"]
[Date "2022.10.12"]
[WhiteClock "0:00:03"]
[BlackClock "0:00:12"]

1. c4 {[%clk 0:02:59]}  c5 {[%clk 0:02:59]} 2. g3 {[%clk 0:02:59]}  g6 {[%clk 0:02:59]} 3. Bg2 {[%clk 0:02:59]}  Bg7 {[%clk 0:03:00]} 4. Nc3 {[%clk 0:02:59]}  Nc6 {[%clk 0:03:00]} 5. e4 {[%clk 0:03:00]}  d6 {[%clk 0:02:59]} 6. Nge2 {[%clk 0:03:00]}  e6 {[%clk 0:02:59]} 7. Rb1 {[%clk 0:02:54]}  Nge7 {[%clk 0:02:54]} 8. a3 {[%clk 0:02:49]}  a5 {[%clk 0:02:54]} 9. d3 {[%clk 0:02:47]}  Rb8 {[%clk 0:02:52]} 10. Be3 {[%clk 0:02:42]}  Nd4 {[%clk 0:02:50]} 11. b4 {[%clk 0:02:40]}  axb4 {[%clk 0:02:50]} 12. axb4 {[%clk 0:02:41]}  b6 {[%clk 0:02:50]} 13. O-O {[%clk 0:02:15]}  Bd7 {[%clk 0:02:47]} 14. f4 {[%clk 0:02:04]}  O-O {[%clk 0:02:45]} 15. Bf2 {[%clk 0:02:00]}  Nec6 {[%clk 0:02:42]} 16. b5 {[%clk 0:01:57]}  Nxe2+ {[%clk 0:02:42]} 17. Nxe2 {[%clk 0:01:56]}  Nd4 {[%clk 0:02:40]} 18. Nxd4 {[%clk 0:01:56]}  cxd4 {[%clk 0:02:37]} 19. Ra1 {[%clk 0:01:41]}  Ra8 {[%clk 0:02:32]} 20. Qb3 {[%clk 0:01:34]}  e5 {[%clk 0:02:25]} 21. Qb4 {[%clk 0:01:10]}  Qc7 {[%clk 0:02:17]} 22. fxe5 {[%clk 0:00:46]}  dxe5 {[%clk 0:02:08]} 23. h3 {[%clk 0:00:46]}  Rfc8 {[%clk 0:02:02]} 24. g4 {[%clk 0:00:40]}  Bf8 {[%clk 0:02:02]} 25. Qb2 {[%clk 0:00:39]}  Be7 {[%clk 0:01:56]} 26. Bg3 {[%clk 0:00:36]}  Qc5 {[%clk 0:01:55]} 27. Kh2 {[%clk 0:00:26]}  Bg5 {[%clk 0:01:54]} 28. Qf2 {[%clk 0:00:14]}  Be6 {[%clk 0:01:51]} 29. h4 {[%clk 0:00:14]}  Be3 {[%clk 0:01:51]} 30. Qf3 {[%clk 0:00:14]}  h6 {[%clk 0:01:23]} 31. Qf6 {[%clk 0:00:12]}  Bf4 {[%clk 0:01:05]} 32. Bxf4 {[%clk 0:00:11]}  exf4 {[%clk 0:01:05]} 33. g5 {[%clk 0:00:06]}  hxg5 {[%clk 0:00:45]} 34. hxg5 {[%clk 0:00:07]}  Rxa1 {[%clk 0:00:38]} 35. Rxa1 {[%clk 0:00:08]}  Qc7 {[%clk 0:00:38]} 36. Bf3 {[%clk 0:00:07]}  Qd8 {[%clk 0:00:17]} 37. Qxd8+ {[%clk 0:00:04]}  Rxd8 {[%clk 0:00:17]} 38. Ra6 {[%clk 0:00:05]}  Rb8 {[%clk 0:00:17]} 39. Kg2 {[%clk 0:00:04]}  Kg7 {[%clk 0:00:18]} 40. Kf2 {[%clk 0:00:04]}  f6 {[%clk 0:00:18]} 41. gxf6+ {[%clk 0:00:04]}  Kxf6 {[%clk 0:00:18]} 42. Be2 {[%clk 0:00:03]}  g5 {[%clk 0:00:18]} 43. Bf3 {[%clk 0:00:02]}  g4 {[%clk 0:00:19]} 44. Bd1 {[%clk 0:00:03]}  Ke5 {[%clk 0:00:19]} 45. Bb3 {[%clk 0:00:02]}  Bf7 {[%clk 0:00:17]} 46. Ra7 {[%clk 0:00:01]}  g3+ {[%clk 0:00:18]} 47. Kg2 {[%clk 0:00:01]}  Be6 {[%clk 0:00:17]} 48. Re7 {[%clk 0:00:01]}  Kd6 {[%clk 0:00:16]} 49. Rh7 {[%clk 0:00:01]}  Ra8 {[%clk 0:00:16]} 50. Rh6 {[%clk 0:00:02]}  Ke7 {[%clk 0:00:15]} 51. Rxe6+ {[%clk 0:00:01]}  Kxe6 {[%clk 0:00:15]} 52. c5+ {[%clk 0:00:02]}  Ke5 {[%clk 0:00:16]} 53. cxb6 {[%clk 0:00:02]}  Rb8 {[%clk 0:00:16]} 54. Bd5 {[%clk 0:00:02]}  Rxb6 {[%clk 0:00:16]} 55. Bc6 {[%clk 0:00:03]}  Kd6 {[%clk 0:00:17]} 56. Kf3 {[%clk 0:00:03]}  Kc5 {[%clk 0:00:17]} 57. e5 {[%clk 0:00:03]}  Rb8 {[%clk 0:00:17]} 58. Kxf4 {[%clk 0:00:03]}  Rxb5 {[%clk 0:00:15]} 59. Bg2 {[%clk 0:00:04]}  Rb2 {[%clk 0:00:14]} 60. Kxg3 {[%clk 0:00:04]}  Re2 {[%clk 0:00:14]} 61. Be4 {[%clk 0:00:03]}  Kb6 {[%clk 0:00:11]} 62. Kf4 {[%clk 0:00:02]}  Kc7 {[%clk 0:00:12]} 63. e6 {[%clk 0:00:02]}  Re3 {[%clk 0:00:11]} 64. Ke5 {[%clk 0:00:02]}  Kd8 {[%clk 0:00:11]} 65. Kxd4 {[%clk 0:00:02]}  Re1 {[%clk 0:00:11]} 66. Ke5 {[%clk 0:00:02]}  Ke7 {[%clk 0:00:11]} 67. d4 {[%clk 0:00:02]}  Rg1 {[%clk 0:00:11]} 68. d5 {[%clk 0:00:03]}  Rd1 {[%clk 0:00:11]} 69. Bf5 {[%clk 0:00:02]}  Re1+ {[%clk 0:00:11]} 70. Be4 {[%clk 0:00:03]}  Rd1 {[%clk 0:00:12]} 71. Bf5 {[%clk 0:00:03]}  Rd2 {[%clk 0:00:12]} 72. Be4 {[%clk 0:00:03]}  Rd1 {[%clk 0:00:12]} 1/2-1/2


[Site "https://www.chess.com"]